fUST/lending_fUST_20250801
["ID","MTS","AMOUNT","RATE_DAILY","PERIOD"]
[376508013,1753999853285,-1191.841278,0.00020547,2]
[376508027,1753999853417,-1191.841278,0.00020547,2]
[376508029,1753999853427,-477.7,0.00020547,2]
[376508031,1753999853437,-1191.841278,0.00020547,2]
[376508033,1753999853447,-1191.841278,0.00020547,2]
[376508035,1753999853456,-460.0,0.00020547,2]
[376508037,1753999853466,-709.63,0.00020547,2]
[376508039,1753999853475,-585.0,0.00020548,2]
[376508041,1753999853485,-1000.0,0.00020551,2]
[376508043,1753999853495,-157.13895003,0.00020575,2]
[376508045,1753999853504,-160.0,0.000206,2]
[376508047,1753999853514,-231.334276,0.00020624,2]
[376508049,1753999853524,-555.231714,0.00020624,2]
[376508051,1753999853534,-555.231714,0.00020624,2]
[376508053,1753999853543,-168.0,0.00020637,2]
[376508054,1753999853551,-168.0,0.00020651,2]
[376508056,1753999853561,-168.0,0.00020682,2]
[376508058,1753999853574,-151.0,0.000207,3]
[376508060,1753999853584,-168.0,0.0002071,2]
[376508062,1753999853593,-157.13895003,0.00020712,2]
[376508064,1753999853603,-2042.33017874,0.00020721,2]
[376508066,1753999853612,-214.99831783,0.00020762,3]
[376508068,1753999853621,-12642.0599901,0.00020762,3]
[376508070,1753999853630,-460.3348536,0.00020762,3]
[376508072,1753999853640,-235.0,0.00020792,2]
[376508074,1753999853650,-420.0,0.00020792,2]
[376508076,1753999853659,-151.0,0.00020821,2]
[376508078,1753999853668,-151.0,0.00020821,2]
[376508080,1753999853678,-151.0,0.00020821,2]
[376508082,1753999853687,-151.0,0.00020821,2]
[376508084,1753999853696,-151.0,0.00020821,2]
[376508086,1753999853705,-267.16376,0.00020821,2]
[376508088,1753999853714,-199.635796,0.00020821,2]
[376508090,1753999853723,-155.391068,0.00020821,2]
[376508092,1753999853732,-155.391068,0.00020821,2]
[376508094,1753999853742,-151.0,0.00020821,2]
[376508096,1753999853752,-460.0,0.00020821,2]
[376508098,1753999853761,-151.0,0.00020821,2]
[376508100,1753999853771,-151.0,0.00020821,2]
[376508102,1753999853780,-227.595515,0.00020821,2]
[376508104,1753999853790,-227.595515,0.00020821,2]
[376508106,1753999853800,-297.417122,0.00020821,2]
[376508108,1753999853809,-297.417122,0.00020821,2]
[376508110,1753999853820,-297.417122,0.00020821,2]
[376508112,1753999853830,-297.417122,0.00020821,2]
[376508114,1753999853839,-460.0,0.00020821,2]
[376508116,1753999853849,-169.622966,0.00020821,2]
[376508118,1753999853859,-251.388049,0.00020821,2]
[376508120,1753999853870,-251.388049,0.00020821,2]
[376508122,1753999853883,-169.622966,0.00020821,2]
[376508123,1753999853897,-460.0,0.00020821,2]
[376508125,1753999853907,-251.388049,0.00020821,2]
[376508127,1753999853916,-251.388049,0.00020821,2]
[376508129,1753999853926,-460.0,0.00020821,2]
[376508132,1753999853936,-471.38314045,0.00020821,2]
[376508133,1753999853946,-460.0,0.00020821,2]
[376508135,1753999853956,-151.0,0.00020821,2]
[376508138,1753999853965,-468.29280845,0.00020821,2]
[376508139,1753999853975,-1027.28,0.00020821,2]
[376508141,1753999853985,-460.0,0.00020821,2]
[376508143,1753999853994,-460.0,0.00020821,2]
[376508145,1753999854003,-460.0,0.00020821,2]
[376508147,1753999854013,-476.99,0.00020821,2]
[376508149,1753999854022,-460.0,0.00020821,2]
[376508151,1753999854031,-249.62451,0.00020821,2]
[376508153,1753999854041,-151.0,0.00020821,2]
[376508155,1753999854050,-536.79997238,0.00020821,2]
[376508157,1753999854060,-498.81,0.00020821,2]
[376508159,1753999854071,-151.0,0.00020821,2]
[376508161,1753999854081,-151.0,0.00020821,2]
[376508163,1753999854090,-652.24,0.00020821,2]
[376508165,1753999854100,-669.92,0.00020821,2]
[376508167,1753999854109,-765.73,0.00020821,2]
[376508169,1753999854119,-460.0,0.00020821,2]
[376508171,1753999854129,-591.7,0.00020821,2]
[376508173,1753999854138,-460.0,0.00020821,2]
[376508175,1753999854147,-2242.22,0.00020821,2]
[376508177,1753999854156,-777.89,0.00020821,2]
[376508179,1753999854166,-151.0,0.00020821,2]
[376508181,1753999854175,-188.629034,0.00020821,2]
[376508183,1753999854184,-1143.02,0.00020821,2]
[376508185,1753999854194,-460.0,0.00020821,2]
[376508187,1753999854203,-460.0,0.00020821,2]
[376508189,1753999854213,-1064.61,0.00020821,2]
[376508191,1753999854223,-806.73,0.00020821,2]
[376508193,1753999854232,-1983.66,0.00020821,2]
[376508195,1753999854241,-460.0,0.00020821,2]
[376508197,1753999854250,-460.0,0.00020821,2]
[376508199,1753999854259,-460.0,0.00020821,2]
[376508201,1753999854268,-851.35,0.00020821,2]
[376508203,1753999854278,-460.0,0.00020821,2]
[376508205,1753999854288,-724.31,0.00020821,2]
[376508207,1753999854298,-573.13,0.00020821,2]
[376508209,1753999854307,-2062.32,0.00020821,2]
[376508211,1753999854317,-460.0,0.00020821,2]
[376508213,1753999854326,-549.93765246,0.00020821,2]
[376508215,1753999854335,-460.0,0.00020821,2]
[376508217,1753999854345,-2530.34,0.00020821,2]
[376508219,1753999854354,-717.64,0.00020821,2]
[376508221,1753999854363,-469.43,0.00020821,2]
[376508223,1753999854372,-932.97,0.00020821,2]
[376508224,1753999854381,-744.53,0.00020821,2]
[376508225,1753999854390,-1062.61,0.00020821,2]
[376508226,1753999854399,-597.94,0.00020821,2]
[376508227,1753999854408,-685.85,0.00020821,2]
[376508228,1753999854417,-7249.9,0.00020821,2]
[376508229,1753999854426,-6621.28,0.00020821,2]
[376508230,1753999854435,-1492.04,0.00020821,2]
[376508231,1753999854444,-2116.53,0.00020821,2]
[376508232,1753999854453,-460.0,0.00020821,2]
[376508233,1753999854463,-460.0,0.00020821,2]
[376508234,1753999854471,-501.74,0.00020821,2]
[376508235,1753999854481,-396.92750415,0.00020821,2]
[376508236,1753999854490,-727.73,0.00020821,2]
[376508237,1753999854499,-712.08,0.00020821,2]
[376508238,1753999854508,-460.0,0.00020821,2]
[376508239,1753999854517,-746.65,0.00020821,2]
[376508240,1753999854526,-1101.15,0.00020821,2]
[376508241,1753999854535,-1134.78,0.00020821,2]
[376508242,1753999854544,-4132.28,0.00020821,2]
[376508243,1753999854553,-665.6,0.00020821,2]
[376508244,1753999854563,-460.0,0.00020821,2]
[376508245,1753999854573,-1613.35,0.00020821,2]
[376508246,1753999854583,-2189.39,0.00020821,2]
[376508247,1753999854592,-2826.98,0.00020821,2]
[376508249,1753999854601,-555.231714,0.00020821,2]
[376508251,1753999854610,-174.245628,0.00020821,2]
[376508253,1753999854620,-749.77,0.00020821,2]
[376508255,1753999854630,-555.231706,0.00020821,2]
[376508257,1753999854639,-693.14,0.00020821,2]
[376508259,1753999854648,-174.245633,0.00020821,2]
[376508261,1753999854658,-460.0,0.00020821,2]
[376508263,1753999854668,-1741.5,0.00020821,2]
[376508265,1753999854676,-3069.61,0.00020821,2]
[376508267,1753999854686,-476.04,0.00020821,2]
[376508269,1753999854695,-460.0,0.00020821,2]
[376508271,1753999854705,-460.0,0.00020821,2]
[376508273,1753999854715,-1191.841278,0.00020821,2]
[376508275,1753999854723,-477.7,0.00020821,2]
[376508277,1753999854733,-1191.841273,0.00020821,2]
[376508279,1753999854742,-460.0,0.00020821,2]
[376508281,1753999854751,-709.63,0.00020821,2]
[376508283,1753999854760,-585.0,0.00020822,2]
[376508285,1753999854770,-153.0,0.00020822,2]
[376508287,1753999854779,-160.1575864,0.00020822,2]
[376508289,1753999854788,-400.1109256,0.00020822,2]
[376508291,1753999854798,-178.4967982,0.00020822,2]
[376508293,1753999854807,-578.3876535,0.00020822,2]
[376508295,1753999854817,-153.0,0.00020822,2]
[376508297,1753999854827,-160.1575864,0.00020822,2]
[376508298,1753999854836,-178.4967982,0.00020822,2]
[376508300,1753999854845,-360.2232168,0.00020822,2]
[376508302,1753999854855,-578.3876535,0.00020822,2]
[376508305,1753999854864,-178.4967982,0.00020822,2]
[376508306,1753999854873,-578.3876535,0.00020822,2]
[376508308,1753999854883,-160.1575864,0.00020822,2]
[376508310,1753999854894,-153.0,0.00020822,2]
[376508312,1753999854904,-160.1575864,0.00020822,2]
[376508314,1753999854913,-178.4967982,0.00020822,2]
[376508316,1753999854922,-153.0,0.00020822,2]
[376508318,1753999854931,-578.3876535,0.00020822,2]
[376508320,1753999854942,-178.4967982,0.00020822,2]
[376508322,1753999854951,-578.3876535,0.00020822,2]
[376508324,1753999854960,-160.1575864,0.00020822,2]
[376508326,1753999854971,-178.148032,0.00020822,2]
[376508328,1753999854980,-160.1575864,0.00020822,2]
[376508330,1753999854989,-578.3876535,0.00020822,2]
[376508332,1753999854999,-578.3876535,0.00020822,2]
[376508334,1753999855008,-160.1575864,0.00020822,2]
[376508336,1753999855018,-160.1575864,0.00020822,2]
[376508338,1753999855027,-427.1637769,0.00020822,2]
[376508340,1753999855036,-159.687502,0.00020822,2]
[376508342,1753999855046,-168.0,0.00020836,2]
[376508344,1753999855055,-7790.33439563,0.00020871,2]
[376508346,1753999855064,-157.13895003,0.00020877,2]
[376508348,1753999855077,-1595.0,0.00020893,2]
[376508350,1753999855086,-151.0,0.000209,3]
[376508352,1753999855096,-644.0,0.000209,2]
[376508354,1753999855105,-168.0,0.00020914,2]
[376508355,1753999855115,-168.0,0.00020923,2]
[376508356,1753999855124,-169.622966,0.00020935,2]
[376508357,1753999855134,-169.622972,0.00020935,2]
[376508358,1753999855144,-151.0,0.00020935,2]
[376508359,1753999855154,-2751.0,0.0002095,2]
[376508360,1753999855164,-1942.28339133,0.00021,5]
[376508361,1753999855175,-3000.0,0.00021,2]
[376508362,1753999855184,-151.0,0.00021,3]
[376508363,1753999855194,-227.595515,0.00021,2]
[376508364,1753999855203,-227.595515,0.00021,2]
[376508365,1753999855212,-3000.0,0.0002101,2]
[376508366,1753999855222,-3000.0,0.0002102,2]
[376508367,1753999855231,-962.6,0.00021023,3]
[376508368,1753999855240,-168.0,0.00021024,2]
[376508369,1753999855250,-168.0,0.0002103,2]
[376508370,1753999855259,-3000.0,0.0002103,2]
[376508371,1753999855269,-3000.0,0.0002104,2]
[376508372,1753999855279,-157.13895003,0.00021041,2]
[376508373,1753999855288,-3000.0,0.0002105,2]
[376508374,1753999855297,-3000.0,0.0002106,2]
[376508375,1753999855307,-3000.0,0.0002107,2]
[376508376,1753999855318,-500.0,0.00021073,2]
[376508377,1753999855328,-183.74519215,0.00021073,2]
[376508378,1753999855338,-158.4789756,0.00021073,2]
[376508379,1753999855347,-500.48949098,0.00021073,2]
[376508380,1753999855357,-500.0,0.00021073,2]
[376508381,1753999855366,-500.0,0.00021073,2]
[376508382,1753999855376,-500.0,0.00021073,2]
[376508383,1753999855385,-501.69513984,0.00021073,2]
[376508384,1753999855395,-500.0,0.00021073,2]
[376508385,1753999855404,-500.0,0.00021073,2]
[376508386,1753999855414,-500.0,0.00021073,2]
[376508387,1753999855423,-500.0,0.00021073,2]
[376508388,1753999855433,-500.54838172,0.00021073,2]
[376508389,1753999855443,-502.44026268,0.00021073,2]
[376508390,1753999855453,-501.39977742,0.00021073,2]
[376508391,1753999855463,-497.33618508,0.00021073,2]
[376508392,1753999855472,-500.37623157,0.00021073,2]
[376508393,1753999855481,-500.0,0.00021073,2]
[376508394,1753999855491,-500.0,0.00021073,2]
[376508395,1753999855500,-500.0,0.00021073,2]
[376508396,1753999855509,-500.33704591,0.00021073,2]
[376508397,1753999855519,-500.0,0.00021073,2]
[376508398,1753999855529,-500.0,0.00021073,2]
[376508399,1753999855539,-500.0,0.00021073,2]
[376508400,1753999855548,-500.0,0.00021073,2]
[376508401,1753999855557,-500.0,0.00021073,2]
[376508402,1753999855568,-502.04095239,0.00021073,2]
[376508403,1753999855578,-500.0,0.00021073,2]
[376508404,1753999855587,-500.41995788,0.00021073,2]
[376508405,1753999855596,-500.0,0.00021073,2]
[376508406,1753999855605,-500.0,0.00021073,2]
[376508407,1753999855615,-500.0,0.00021073,2]
[376508408,1753999855624,-500.0,0.00021073,2]
[376508409,1753999855634,-500.74166799,0.00021073,2]
[376508410,1753999855643,-500.0,0.00021073,2]
[376508411,1753999855653,-500.0,0.00021073,2]
[376508412,1753999855662,-500.0,0.00021073,2]
[376508413,1753999855673,-500.0,0.00021073,2]
[376508414,1753999855683,-500.0,0.00021073,2]
[376508415,1753999855693,-500.0,0.00021073,2]
[376508416,1753999855703,-500.0,0.00021073,2]
[376508417,1753999855713,-500.0,0.00021073,2]
[376508418,1753999855722,-500.0,0.00021073,2]
[376508419,1753999855732,-501.47272287,0.00021073,2]
[376508420,1753999855741,-500.0,0.00021073,2]
[376508421,1753999855751,-500.0,0.00021073,2]
[376508422,1753999855761,-500.0,0.00021073,2]
[376508423,1753999855770,-500.0,0.00021073,2]
[376508424,1753999855780,-500.0,0.00021073,2]
[376508425,1753999855790,-500.0,0.00021073,2]
[376508426,1753999855799,-500.0,0.00021073,2]
[376508427,1753999855809,-500.0,0.00021073,2]
[376508428,1753999855821,-500.0,0.00021073,2]
[376508429,1753999855831,-415.17176294,0.00021073,2]
[376508430,1753999855841,-151.0,0.00021073,2]
[376508431,1753999855851,-166.36829,0.00021073,2]
[376508432,1753999855861,-267.16376,0.00021073,2]
[376508433,1753999855871,-155.391068,0.00021073,2]
[376508434,1753999855880,-155.391068,0.00021073,2]
[376508435,1753999855890,-151.0,0.00021073,2]
[376508436,1753999855902,-151.0,0.00021073,2]
[376508437,1753999855911,-151.0,0.0002108,2]
[376508438,1753999855921,-3000.0,0.0002108,2]
[376508439,1753999855931,-3000.0,0.0002109,2]
[376508440,1753999855940,-151.0,0.00021095,2]
[376508441,1753999855950,-267.16376,0.00021095,2]
[376508442,1753999855959,-155.391068,0.00021095,2]
[376508443,1753999855970,-155.391068,0.00021095,2]
[376508444,1753999855981,-151.0,0.00021095,2]
[376508445,1753999855991,-460.0,0.00021095,2]
[376508446,1753999856000,-151.0,0.00021095,2]
[376508447,1753999856009,-227.595515,0.00021095,2]
[376508448,1753999856019,-227.59552,0.00021095,2]
[376508449,1753999856028,-297.417122,0.00021095,2]
[376508450,1753999856037,-297.417115,0.00021095,2]
[376508451,1753999856047,-460.0,0.00021095,2]
[376508452,1753999856056,-251.388049,0.00021095,2]
[376508453,1753999856068,-301.42904659,0.00021095,2]
[376508454,1753999856077,-251.388047,0.00021095,2]
[376508455,1753999856087,-460.0,0.00021095,2]
[376508456,1753999856097,-460.0,0.00021095,2]
[376508457,1753999856106,-1027.28,0.00021095,2]
[376508458,1753999856115,-460.0,0.00021095,2]
[376508459,1753999856124,-460.0,0.00021095,2]
[376508460,1753999856134,-460.0,0.00021095,2]
[376508461,1753999856143,-476.99,0.00021095,2]
[376508462,1753999856153,-460.0,0.00021095,2]
[376508463,1753999856162,-498.81,0.00021095,2]
[376508464,1753999856171,-652.24,0.00021095,2]
[376508465,1753999856180,-669.92,0.00021095,2]
[376508466,1753999856189,-765.73,0.00021095,2]
[376508467,1753999856199,-156.476,0.00021095,2]
[376508468,1753999856208,-460.0,0.00021095,2]
[376508469,1753999856217,-591.7,0.00021095,2]
[376508470,1753999856227,-460.0,0.00021095,2]
[376508471,1753999856236,-2242.22,0.00021095,2]
[376508472,1753999856245,-777.89,0.00021095,2]
[376508473,1753999856255,-1143.02,0.00021095,2]
[376508474,1753999856264,-460.0,0.00021095,2]
[376508475,1753999856274,-1064.61,0.00021095,2]
[376508476,1753999856283,-460.0,0.00021095,2]
[376508477,1753999856292,-806.73,0.00021095,2]
[376508478,1753999856302,-1983.66,0.00021095,2]
[376508479,1753999856311,-460.0,0.00021095,2]
[376508480,1753999856321,-460.0,0.00021095,2]
[376508481,1753999856330,-460.0,0.00021095,2]
[376508482,1753999856339,-851.35,0.00021095,2]
[376508483,1753999856349,-460.0,0.00021095,2]
[376508484,1753999856358,-724.31,0.00021095,2]
[376508485,1753999856367,-573.13,0.00021095,2]
[376508486,1753999856377,-2062.32,0.00021095,2]
[376508487,1753999856388,-329.85838534,0.00021095,2]
[376508488,1753999856398,-460.0,0.00021095,2]
[376508489,1753999856407,-2530.34,0.00021095,2]
[376508490,1753999856417,-717.64,0.00021095,2]
[376508491,1753999856427,-469.43,0.00021095,2]
[376508492,1753999856436,-932.97,0.00021095,2]
[376508493,1753999856561,-744.53,0.00021095,2]
[376508494,1753999856574,-1062.61,0.00021095,2]
[376508495,1753999856583,-597.94,0.00021095,2]
[376508496,1753999856593,-685.85,0.00021095,2]
[376508497,1753999856603,-7249.9,0.00021095,2]
[376508498,1753999856612,-1492.04,0.00021095,2]
[376508499,1753999856622,-6621.28,0.00021095,2]
[376508500,1753999856632,-2116.53,0.00021095,2]
[376508501,1753999856643,-460.0,0.00021095,2]
[376508502,1753999856652,-460.0,0.00021095,2]
[376508503,1753999856662,-501.74,0.00021095,2]
[376508504,1753999856671,-727.73,0.00021095,2]
[376508505,1753999856680,-712.08,0.00021095,2]
[376508506,1753999856690,-460.0,0.00021095,2]
[376508507,1753999856699,-746.65,0.00021095,2]
[376508508,1753999856708,-1101.15,0.00021095,2]
[376508509,1753999856717,-1134.78,0.00021095,2]
[376508510,1753999856728,-4132.28,0.00021095,2]
[376508511,1753999856738,-665.6,0.00021095,2]
[376508512,1753999856748,-460.0,0.00021095,2]
[376508513,1753999856758,-1613.35,0.00021095,2]
[376508514,1753999856767,-2189.39,0.00021095,2]
[376508515,1753999856777,-2826.98,0.00021095,2]
[376508516,1753999856787,-749.77,0.00021095,2]
[376508517,1753999856796,-693.14,0.00021095,2]
[376508518,1753999856807,-460.0,0.00021095,2]
[376508519,1753999856816,-1741.5,0.00021095,2]
[376508520,1753999856828,-3069.61,0.00021095,2]
[376508521,1753999856838,-476.04,0.00021095,2]
[376508522,1753999856848,-460.0,0.00021095,2]
[376508523,1753999856858,-460.0,0.00021095,2]
[376508524,1753999856868,-477.7,0.00021095,2]
[376508525,1753999856878,-460.0,0.00021095,2]
[376508526,1753999856889,-709.63,0.00021095,2]
[376508527,1753999856901,-585.0,0.00021096,2]
[376508528,1753999856911,-287.71451778,0.000211,2]
[376508529,1753999856920,-3000.0,0.000211,2]
[376508530,1753999856932,-3000.0,0.0002111,2]
[376508531,1753999856941,-3000.0,0.0002112,2]
[376508532,1753999856950,-151.0,0.0002113,2]
[376508533,1753999856959,-151.0,0.0002113,2]
[376508534,1753999856970,-3000.0,0.0002113,2]
[376508535,1753999856979,-3000.0,0.0002114,2]
[376508536,1753999856988,-168.0,0.00021143,2]
[376508537,1753999856999,-260.0,0.00021148,2]
[376508538,1753999857008,-3000.0,0.0002115,2]
[376508539,1753999857018,-3000.0,0.0002116,2]
[376508540,1753999857028,-3000.0,0.0002117,2]
[376508541,1753999857038,-157.13895003,0.00021178,2]
[376508542,1753999857048,-3000.0,0.0002118,2]
[376508543,1753999857058,-3000.0,0.0002119,2]
[376508544,1753999857069,-168.0,0.00021195,2]
[376508545,1753999857079,-3000.0,0.000212,2]
[376508546,1753999857089,-151.0,0.000212,4]
[376508547,1753999857099,-3000.0,0.0002121,2]
[376508548,1753999857108,-3000.0,0.0002122,2]
[376508549,1753999857117,-3000.0,0.0002123,2]
[376508550,1753999857127,-168.0,0.00021236,2]
[376508551,1753999857136,-3000.0,0.0002124,2]
[376508552,1753999857145,-168.0,0.00021246,2]
[376508553,1753999857155,-3000.0,0.0002125,2]
[376508554,1753999857164,-3000.0,0.0002126,2]
[376508555,1753999857173,-310.83617647,0.0002126,4]
[376508556,1753999857184,-3000.0,0.0002127,2]
[376508557,1753999857193,-3000.0,0.0002128,2]
[376508558,1753999857203,-500.0,0.00021286,2]
[376508559,1753999857212,-151.0,0.0002129,2]
[376508560,1753999857222,-3000.0,0.0002129,2]
[376508561,1753999857231,-207.253912,0.0002129,2]
[376508562,1753999857241,-3000.0,0.000213,2]
[376508563,1753999857250,-155.391068,0.0002131,2]
[376508564,1753999857259,-155.391068,0.0002131,2]
[376508565,1753999857270,-3000.0,0.0002131,2]
[376508566,1753999857279,-150.380656,0.00021313,2]
[376508567,1753999857289,-3000.0,0.0002132,2]
[376508568,1753999857299,-3000.0,0.0002133,2]
[376508569,1753999857308,-3000.0,0.0002134,2]
[376508570,1753999857320,-157.13895003,0.00021342,2]
[376508571,1753999857330,-267.16376,0.0002135,2]
[376508572,1753999857339,-267.16376,0.0002135,2]
[376508573,1753999857349,-3000.0,0.0002135,2]
[376508574,1753999857358,-168.0,0.00021357,2]
[376508575,1753999857368,-5852.308336,0.0002136,2]
[376508576,1753999857378,-200.0,0.00021366,15]
[376508577,1753999857387,-200.0,0.00021366,15]
[376508578,1753999857396,-200.0,0.00021366,15]
[376508579,1753999857407,-200.0,0.00021366,15]
[376508580,1753999857416,-200.0,0.00021366,15]
[376508581,1753999857427,-200.0,0.00021366,15]
[376508582,1753999857436,-200.0,0.00021366,15]
[376508583,1753999857448,-200.0,0.00021366,15]
[376508584,1753999857459,-200.0,0.00021366,15]
[376508585,1753999857469,-200.0,0.00021366,15]
[376508586,1753999857479,-240.0,0.00021366,15]
[376508587,1753999857489,-151.0,0.00021369,2]
[376508588,1753999857498,-151.0,0.00021369,2]
[376508589,1753999857508,-267.16376,0.00021369,2]
[376508590,1753999857518,-267.16376,0.00021369,2]
[376508591,1753999857527,-155.391068,0.00021369,2]
[376508592,1753999857537,-155.391068,0.00021369,2]
[376508593,1753999857546,-151.0,0.00021369,2]
[376508594,1753999857556,-460.0,0.00021369,2]
[376508595,1753999857566,-460.0,0.00021369,2]
[376508596,1753999857578,-460.0,0.00021369,2]
[376508597,1753999857588,-460.0,0.00021369,2]
[376508598,1753999857597,-1027.28,0.00021369,2]
[376508599,1753999857607,-226.13177791,0.00021369,2]
[376508600,1753999857616,-460.0,0.00021369,2]
[376508601,1753999857626,-460.0,0.00021369,2]
[376508602,1753999857636,-476.99,0.00021369,2]
[376508603,1753999857645,-460.0,0.00021369,2]
[376508604,1753999857655,-498.81,0.00021369,2]
[376508605,1753999857664,-652.24,0.00021369,2]
[376508606,1753999857674,-669.92,0.00021369,2]
[376508607,1753999857683,-765.73,0.00021369,2]
[376508608,1753999857692,-460.0,0.00021369,2]
[376508609,1753999857703,-591.7,0.00021369,2]
[376508610,1753999857712,-460.0,0.00021369,2]
[376508611,1753999857722,-2242.22,0.00021369,2]
[376508612,1753999857732,-777.89,0.00021369,2]
[376508613,1753999857742,-1143.02,0.00021369,2]
[376508614,1753999857752,-460.0,0.00021369,2]
[376508615,1753999857762,-1064.61,0.00021369,2]
[376508616,1753999857771,-806.73,0.00021369,2]
[376508617,1753999857780,-460.0,0.00021369,2]
[376508618,1753999857790,-1983.66,0.00021369,2]
[376508619,1753999857800,-460.0,0.00021369,2]
[376508620,1753999857811,-460.0,0.00021369,2]
[376508621,1753999857822,-460.0,0.00021369,2]
[376508622,1753999857831,-851.35,0.00021369,2]
[376508623,1753999857841,-460.0,0.00021369,2]
[376508624,1753999857850,-724.31,0.00021369,2]
[376508625,1753999857860,-573.13,0.00021369,2]
[376508626,1753999857870,-2062.32,0.00021369,2]
[376508627,1753999857880,-460.0,0.00021369,2]
[376508628,1753999857891,-2530.34,0.00021369,2]
[376508629,1753999857905,-717.64,0.00021369,2]
[376508630,1753999857915,-469.43,0.00021369,2]
[376508631,1753999857924,-932.97,0.00021369,2]
[376508632,1753999857934,-744.53,0.00021369,2]
[376508633,1753999857945,-1062.61,0.00021369,2]
[376508634,1753999857954,-597.94,0.00021369,2]
[376508635,1753999857964,-685.85,0.00021369,2]
[376508636,1753999857976,-7249.9,0.00021369,2]
[376508637,1753999857986,-1492.04,0.00021369,2]
[376508638,1753999857996,-6621.28,0.00021369,2]
[376508639,1753999858006,-2116.53,0.00021369,2]
[376508640,1753999858016,-460.0,0.00021369,2]
[376508641,1753999858026,-460.0,0.00021369,2]
[376508642,1753999858036,-501.74,0.00021369,2]
[376508643,1753999858046,-727.73,0.00021369,2]
[376508644,1753999858056,-712.08,0.00021369,2]
[376508645,1753999858066,-460.0,0.00021369,2]
[376508646,1753999858080,-746.65,0.00021369,2]
[376508647,1753999858091,-1101.15,0.00021369,2]
[376508648,1753999858101,-1134.78,0.00021369,2]
[376508649,1753999858111,-4132.28,0.00021369,2]
[376508650,1753999858121,-665.6,0.00021369,2]
[376508651,1753999858131,-460.0,0.00021369,2]
[376508652,1753999858141,-1613.35,0.00021369,2]
[376508653,1753999858151,-2189.39,0.00021369,2]
[376508654,1753999858161,-2826.98,0.00021369,2]
[376508655,1753999858171,-693.14,0.00021369,2]
[376508656,1753999858181,-749.77,0.00021369,2]
[376508657,1753999858191,-460.0,0.00021369,2]
[376508658,1753999858200,-1741.5,0.00021369,2]
[376508659,1753999858210,-3069.61,0.00021369,2]
[376508660,1753999858220,-476.04,0.00021369,2]
[376508661,1753999858230,-460.0,0.00021369,2]
[376508662,1753999858239,-460.0,0.00021369,2]
[376508663,1753999858249,-477.7,0.00021369,2]
[376508664,1753999858258,-460.0,0.00021369,2]
[376508665,1753999858268,-709.63,0.00021369,2]
[376508666,1753999858278,-585.0,0.0002137,2]
[376508667,1753999858289,-168.0,0.00021396,2]
[376508668,1753999858299,-502.49019685,0.00021412,2]
[376508669,1753999858308,-504.78422189,0.00021412,2]
[376508670,1753999858318,-528.50532864,0.00021412,2]
[376508671,1753999858329,-500.0,0.00021412,2]
[376508672,1753999858338,-500.0,0.00021412,2]
[376508673,1753999858347,-168.0,0.00021416,2]
[376508674,1753999858357,-576.86099704,0.00021423,2]
[376508675,1753999858366,-150.0,0.00021423,2]